[Event "Betsys MČR v online bleskovém šachu 2021"]
[Site "Chess.com"]
[Date "2021.04.17"]
[Round "12"]
[White "HonzaVykouk"]
[Black "Diamantidis_13"]
[Result "1-0"]
[WhiteElo "2683"]
[BlackElo "2451"]
[TimeControl "180+1"]
[EndTime "11:02:06 PDT"]
[Termination "Uživatel HonzaVykouk zvítězil po vzdání soupeře"]

1. e4 {[%clk 0:03:00.9]} 1... c6 {[%clk 0:02:56.8]} 2. c4 {[%clk 0:02:57.7]}
2... d5 {[%clk 0:02:48.9]} 3. cxd5 {[%clk 0:02:58.6]} 3... cxd5 {[%clk
0:02:49.5]} 4. exd5 {[%clk 0:02:59.5]} 4... Nf6 {[%clk 0:02:48.1]} 5. Qa4+
{[%clk 0:02:58.3]} 5... Nbd7 {[%clk 0:02:41.9]} 6. Nc3 {[%clk 0:02:58.3]} 6...
g6 {[%clk 0:02:23.9]} 7. Bc4 {[%clk 0:02:57.9]} 7... Bg7 {[%clk 0:02:23.9]} 8.
d3 {[%clk 0:02:58.1]} 8... O-O {[%clk 0:02:24]} 9. Nf3 {[%clk 0:02:58]} 9... a6
{[%clk 0:02:21.7]} 10. Qa3 {[%clk 0:02:57.5]} 10... Rb8 {[%clk 0:02:19.4]} 11.
Bf4 {[%clk 0:02:56.1]} 11... Ra8 {[%clk 0:01:59.5]} 12. O-O {[%clk 0:02:53.6]}
12... Nh5 {[%clk 0:01:39.9]} 13. Bg5 {[%clk 0:02:53.2]} 13... Nhf6 {[%clk
0:01:35.1]} 14. Rfe1 {[%clk 0:02:52.4]} 14... Re8 {[%clk 0:01:31.5]} 15. Rac1
{[%clk 0:02:39.7]} 15... h6 {[%clk 0:01:22.4]} 16. Bf4 {[%clk 0:02:35.7]} 16...
g5 {[%clk 0:01:20.9]} 17. Be3 {[%clk 0:02:30.6]} 17... Rb8 {[%clk 0:01:20.2]}
18. Ba7 {[%clk 0:02:18]} 18... Ra8 {[%clk 0:01:16.2]} 19. Bd4 {[%clk 0:02:13.6]}
19... Rb8 {[%clk 0:01:15.6]} 20. Ne5 {[%clk 0:01:36.9]} 20... Nxe5 {[%clk
0:00:45.7]} 21. Bxe5 {[%clk 0:01:37.8]} 21... Ra8 {[%clk 0:00:46.3]} 22. Bd4
{[%clk 0:01:31.4]} 22... Bd7 {[%clk 0:00:45]} 23. Bc5 {[%clk 0:01:26.7]} 23...
b5 {[%clk 0:00:43]} 24. Bb3 {[%clk 0:01:25.2]} 24... a5 {[%clk 0:00:22]} 25.
Bxe7 {[%clk 0:01:24.6]} 25... b4 {[%clk 0:00:22.3]} 26. Bxd8 {[%clk 0:01:15.4]}
26... bxa3 {[%clk 0:00:22.5]} 27. Be7 {[%clk 0:00:29]} 27... axb2 {[%clk
0:00:20.6]} 28. Rb1 {[%clk 0:00:29.6]} 28... Ng4 {[%clk 0:00:16.1]} 29. Na4
{[%clk 0:00:26.2]} 29... Bd4 {[%clk 0:00:14.8]} 30. Bc5 {[%clk 0:00:20.3]} 30...
Bxc5 {[%clk 0:00:11.2]} 31. Nxc5 {[%clk 0:00:20]} 31... Rxe1+ {[%clk 0:00:11.9]}
32. Rxe1 {[%clk 0:00:19.8]} 32... Rc8 {[%clk 0:00:12.3]} 33. d4 {[%clk
0:00:17.6]} 33... a4 {[%clk 0:00:12.8]} 34. Bc2 {[%clk 0:00:16.2]} 34... a3
{[%clk 0:00:11.6]} 35. f3 {[%clk 0:00:14.2]} 35... Nf6 {[%clk 0:00:11]} 36. Bb3
{[%clk 0:00:12.2]} 36... Bb5 {[%clk 0:00:11.1]} 37. Kf2 {[%clk 0:00:12]} 37...
Rd8 {[%clk 0:00:10.6]} 38. Nb7 {[%clk 0:00:11.4]} 38... Rd7 {[%clk 0:00:09.8]}
39. Nc5 {[%clk 0:00:11.6]} 39... Rd6 {[%clk 0:00:09.3]} 40. Ne4 {[%clk 0:00:12]}
40... Nxe4+ {[%clk 0:00:08.6]} 41. fxe4 {[%clk 0:00:12.9]} 41... Rb6 {[%clk
0:00:08.7]} 42. Ke3 {[%clk 0:00:11.8]} 42... Bd7 {[%clk 0:00:08.3]} 43. Bc2
{[%clk 0:00:11.5]} 43... Rb8 {[%clk 0:00:07.2]} 44. Kd2 {[%clk 0:00:11.7]} 44...
Rc8 {[%clk 0:00:07.6]} 45. Re3 {[%clk 0:00:10.6]} 45... Bb5 {[%clk 0:00:06]} 46.
Rxa3 {[%clk 0:00:10.4]} 46... Bc4 {[%clk 0:00:04.4]} 47. Rc3 {[%clk 0:00:09.6]}
47... Rb8 {[%clk 0:00:03]} 48. Bb1 {[%clk 0:00:09.9]} 48... Bxa2 {[%clk
0:00:02.8]} 49. Bxa2 {[%clk 0:00:09.9]} 49... b1=Q {[%clk 0:00:03.7]} 50. Bxb1
{[%clk 0:00:10.6]} 50... Rxb1 {[%clk 0:00:04.6]} 51. Rc8+ {[%clk 0:00:11]} 51...
Kg7 {[%clk 0:00:04.8]} 52. Rc2 {[%clk 0:00:11.9]} 52... Rb4 {[%clk 0:00:04.6]}
53. Ke3 {[%clk 0:00:12.2]} 53... Kf6 {[%clk 0:00:04.1]} 54. Rc6+ {[%clk
0:00:11.8]} 54... Kg7 {[%clk 0:00:04.5]} 55. e5 {[%clk 0:00:12.7]} 55... Rb2
{[%clk 0:00:03.7]} 56. d6 {[%clk 0:00:13.1]} 56... Kf8 {[%clk 0:00:03.7]} 57.
Rc8+ {[%clk 0:00:12.7]} 57... Kg7 {[%clk 0:00:04.2]} 58. d7 {[%clk 0:00:13.6]}
58... Rc2 {[%clk 0:00:04.4]} 59. Rxc2 {[%clk 0:00:13]} 1-0

[Event "Betsys MČR v online bleskovém šachu 2021"]
[Site "Chess.com"]
[Date "2021.04.17"]
[Round "12"]
[White "Svisthorsky"]
[Black "Tomasn2003"]
[Result "1-0"]
[WhiteElo "1463"]
[BlackElo "1149"]
[TimeControl "180+1"]
[EndTime "11:02:14 PDT"]
[Termination "Uživatel Svisthorsky zvítězil na čas"]

1. d4 {[%clk 0:03:00.9]} 1... d5 {[%clk 0:02:59.5]} 2. c4 {[%clk 0:03:00.8]}
2... e5 {[%clk 0:02:59.2]} 3. dxe5 {[%clk 0:02:57.1]} 3... d4 {[%clk 0:02:59.4]}
4. Nf3 {[%clk 0:02:55.8]} 4... Nc6 {[%clk 0:02:59.2]} 5. e3 {[%clk 0:02:50.1]}
5... Bb4+ {[%clk 0:02:55.2]} 6. Bd2 {[%clk 0:02:46.9]} 6... dxe3 {[%clk
0:02:54.8]} 7. fxe3 {[%clk 0:02:35.1]} 7... Bxd2+ {[%clk 0:02:52.2]} 8. Nbxd2
{[%clk 0:02:24.9]} 8... Bg4 {[%clk 0:02:50.1]} 9. Be2 {[%clk 0:02:23.4]} 9...
Bxf3 {[%clk 0:02:47.6]} 10. Nxf3 {[%clk 0:02:22.2]} 10... Qxd1+ {[%clk
0:02:45.2]} 11. Rxd1 {[%clk 0:02:21.7]} 11... Nge7 {[%clk 0:02:37.3]} 12. O-O
{[%clk 0:02:18.5]} 12... O-O {[%clk 0:02:35.7]} 13. Rd7 {[%clk 0:02:07.3]} 13...
Rac8 {[%clk 0:02:33.2]} 14. b4 {[%clk 0:02:03.1]} 14... Ng6 {[%clk 0:02:27.1]}
15. Ng5 {[%clk 0:01:37.7]} 15... Ncxe5 {[%clk 0:02:14.9]} 16. Rdd1 {[%clk
0:01:27.1]} 16... Rcd8 {[%clk 0:02:08]} 17. a3 {[%clk 0:01:21.7]} 17... Rxd1
{[%clk 0:02:06.3]} 18. Rxd1 {[%clk 0:01:21.6]} 18... b6 {[%clk 0:01:57.4]} 19.
Ra1 {[%clk 0:01:13.3]} 19... h6 {[%clk 0:01:56.9]} 20. Nf3 {[%clk 0:01:11.9]}
20... Nxf3+ {[%clk 0:01:56]} 21. gxf3 {[%clk 0:01:11.9]} 21... Rd8 {[%clk
0:01:53.6]} 22. Ra2 {[%clk 0:01:09]} 22... Kf8 {[%clk 0:01:45.6]} 23. Kg2 {[%clk
0:01:04.6]} 23... Ke7 {[%clk 0:01:45.1]} 24. Kg3 {[%clk 0:01:04.7]} 24... Kf6
{[%clk 0:01:43.2]} 25. f4 {[%clk 0:01:04.5]} 25... c5 {[%clk 0:01:34.4]} 26. b5
{[%clk 0:01:00.7]} 26... Ne7 {[%clk 0:01:27.6]} 27. a4 {[%clk 0:00:59.1]} 27...
Nf5+ {[%clk 0:01:26.6]} 28. Kf2 {[%clk 0:00:53]} 28... g5 {[%clk 0:01:20.8]} 29.
fxg5+ {[%clk 0:00:48.3]} 29... hxg5 {[%clk 0:01:18.6]} 30. a5 {[%clk 0:00:48.5]}
30... Rd7 {[%clk 0:01:11.6]} 31. axb6 {[%clk 0:00:46.8]} 31... axb6 {[%clk
0:01:10.9]} 32. Bf3 {[%clk 0:00:40]} 32... Ke5 {[%clk 0:00:58.5]} 33. Ra6 {[%clk
0:00:39.2]} 33... Rd6 {[%clk 0:00:57]} 34. Ra7 {[%clk 0:00:38]} 34... f6 {[%clk
0:00:50.9]} 35. Bd5 {[%clk 0:00:31.5]} 35... Nh4 {[%clk 0:00:38.9]} 36. Rb7
{[%clk 0:00:20.7]} 36... Ng6 {[%clk 0:00:31.1]} 37. Ra7 {[%clk 0:00:20.2]} 37...
f5 {[%clk 0:00:23.6]} 38. Rg7 {[%clk 0:00:18.9]} 38... f4 {[%clk 0:00:20.5]} 39.
exf4+ {[%clk 0:00:17.7]} 39... gxf4 {[%clk 0:00:20.4]} 40. Bf7 {[%clk
0:00:14.9]} 40... Ne7 {[%clk 0:00:19.6]} 41. Bh5 {[%clk 0:00:11.3]} 41... Nf5
{[%clk 0:00:18.2]} 42. Rg5 {[%clk 0:00:09.9]} 42... Rd2+ {[%clk 0:00:17.3]} 43.
Ke1 {[%clk 0:00:08.4]} 43... Rxh2 {[%clk 0:00:15.3]} 44. Bg4 {[%clk 0:00:08.3]}
44... Rh1+ {[%clk 0:00:09.2]} 45. Kf2 {[%clk 0:00:08.3]} 45... Rh2+ {[%clk
0:00:07.9]} 46. Kg1 {[%clk 0:00:07.8]} 46... Rc2 {[%clk 0:00:06.5]} 47. Rxf5+
{[%clk 0:00:07.7]} 47... Kd4 {[%clk 0:00:06.6]} 48. Rxf4+ {[%clk 0:00:07.4]}
48... Kc3 {[%clk 0:00:06.4]} 49. Rf3+ {[%clk 0:00:07]} 49... Kb4 {[%clk
0:00:06.4]} 50. Bf5 {[%clk 0:00:07.6]} 50... Rxc4 {[%clk 0:00:05.6]} 51. Bd3
{[%clk 0:00:05.9]} 51... Rc1+ {[%clk 0:00:05]} 52. Kg2 {[%clk 0:00:05.8]} 52...
Ra1 {[%clk 0:00:04.4]} 53. Kg3 {[%clk 0:00:05.6]} 53... Ra3 {[%clk 0:00:04.1]}
54. Kf4 {[%clk 0:00:03.9]} 54... Ka5 {[%clk 0:00:03.9]} 55. Ke5 {[%clk
0:00:03.4]} 55... Rc3 {[%clk 0:00:02.9]} 56. Re3 {[%clk 0:00:02.4]} 56... Ra3
{[%clk 0:00:02.3]} 57. Ke4 {[%clk 0:00:02.5]} 57... Rc3 {[%clk 0:00:02.3]} 58.
Rg3 {[%clk 0:00:02.9]} 58... Ra3 {[%clk 0:00:02.3]} 59. Rg6 {[%clk 0:00:03.5]}
59... Kb4 {[%clk 0:00:02.4]} 60. Rc6 {[%clk 0:00:04.2]} 1-0

[Event "Betsys MČR v online bleskovém šachu 2021"]
[Site "Chess.com"]
[Date "2021.04.17"]
[Round "12"]
[White "pedroholly22"]
[Black "fadamos"]
[Result "1-0"]
[WhiteElo "2407"]
[BlackElo "2301"]
[TimeControl "180+1"]
[EndTime "11:02:17 PDT"]
[Termination "Uživatel pedroholly22 zvítězil po vzdání soupeře"]

1. e4 {[%clk 0:03:00.9]} 1... d6 {[%clk 0:02:58.1]} 2. d4 {[%clk 0:03:00.6]}
2... Nf6 {[%clk 0:02:57.7]} 3. Nc3 {[%clk 0:03:01]} 3... g6 {[%clk 0:02:58.1]}
4. f3 {[%clk 0:02:58.1]} 4... a6 {[%clk 0:02:57.6]} 5. Be3 {[%clk 0:02:58.3]}
5... b5 {[%clk 0:02:58]} 6. Qd2 {[%clk 0:02:58.9]} 6... Nbd7 {[%clk 0:02:58.5]}
7. g4 {[%clk 0:02:56.5]} 7... Nb6 {[%clk 0:02:57.8]} 8. h4 {[%clk 0:02:53.2]}
8... h5 {[%clk 0:02:56.9]} 9. g5 {[%clk 0:02:53.1]} 9... Nfd7 {[%clk 0:02:57.2]}
10. b3 {[%clk 0:02:51.8]} 10... Bg7 {[%clk 0:02:57]} 11. Nge2 {[%clk 0:02:43.9]}
11... Bb7 {[%clk 0:02:57]} 12. Rd1 {[%clk 0:02:42.4]} 12... c5 {[%clk
0:02:50.9]} 13. Bh3 {[%clk 0:02:27]} 13... O-O {[%clk 0:02:38.7]} 14. Kf2 {[%clk
0:02:16.8]} 14... Qc7 {[%clk 0:02:26.8]} 15. Nb1 {[%clk 0:01:51.6]} 15... Rad8
{[%clk 0:02:24.8]} 16. c3 {[%clk 0:01:51.1]} 16... a5 {[%clk 0:02:20.4]} 17. Na3
{[%clk 0:01:50.8]} 17... Ba6 {[%clk 0:02:20.1]} 18. Rc1 {[%clk 0:01:47.9]} 18...
Qb7 {[%clk 0:02:13.6]} 19. d5 {[%clk 0:01:42.7]} 19... b4 {[%clk 0:02:11.6]} 20.
Nb1 {[%clk 0:01:41.8]} 20... Ne5 {[%clk 0:02:03.9]} 21. c4 {[%clk 0:01:39.2]}
21... Qa7 {[%clk 0:01:57.6]} 22. f4 {[%clk 0:01:37]} 22... Ned7 {[%clk
0:01:54.2]} 23. f5 {[%clk 0:01:36.4]} 23... Ne5 {[%clk 0:01:53.8]} 24. Nf4
{[%clk 0:01:32.6]} 24... Bc8 {[%clk 0:01:52.5]} 25. Kg3 {[%clk 0:01:29.6]} 25...
Kh7 {[%clk 0:01:41.3]} 26. Rhf1 {[%clk 0:01:25.2]} 26... a4 {[%clk 0:01:38.8]}
27. Qe2 {[%clk 0:01:23.5]} 27... axb3 {[%clk 0:01:31.7]} 28. axb3 {[%clk
0:01:23.1]} 28... Bd7 {[%clk 0:01:24]} 29. Nxh5 {[%clk 0:00:51.2]} 29... Ra8
{[%clk 0:01:02.3]} 30. Nxg7 {[%clk 0:00:45.4]} 30... Kxg7 {[%clk 0:01:02.4]} 31.
f6+ {[%clk 0:00:45.9]} 31... exf6 {[%clk 0:00:56.4]} 32. gxf6+ {[%clk
0:00:46.8]} 32... Kh7 {[%clk 0:00:48.1]} 33. Bxd7 {[%clk 0:00:32.2]} 33... Qxd7
{[%clk 0:00:47.7]} 34. Bf4 {[%clk 0:00:32.2]} 34... Rh8 {[%clk 0:00:44.4]} 35.
Nd2 {[%clk 0:00:30.2]} 35... Ra2 {[%clk 0:00:43.9]} 36. Ra1 {[%clk 0:00:27.3]}
36... Qa7 {[%clk 0:00:38.8]} 37. Rxa2 {[%clk 0:00:26.4]} 37... Qxa2 {[%clk
0:00:39.7]} 38. Bxe5 {[%clk 0:00:25.8]} 38... dxe5 {[%clk 0:00:40.6]} 39. Qe3
{[%clk 0:00:22]} 39... Nd7 {[%clk 0:00:39.4]} 40. Nf3 {[%clk 0:00:21.6]} 40...
Kg8 {[%clk 0:00:34.7]} 41. Ng5 {[%clk 0:00:17.8]} 41... Qb2 {[%clk 0:00:31.3]}
42. Qf3 {[%clk 0:00:17.3]} 42... Rh5 {[%clk 0:00:21.7]} 43. Qg4 {[%clk 0:00:17]}
43... Nf8 {[%clk 0:00:12.8]} 44. Qc8 {[%clk 0:00:15]} 44... Qe2 {[%clk
0:00:11.8]} 45. Rf3 {[%clk 0:00:12.6]} 45... Qe1+ {[%clk 0:00:11.9]} 46. Kg2
{[%clk 0:00:12.3]} 46... Rxh4 {[%clk 0:00:11.5]} 47. Rh3 {[%clk 0:00:08.5]}
47... Qe2+ {[%clk 0:00:11.6]} 48. Kg3 {[%clk 0:00:07.5]} 48... Rg4+ {[%clk
0:00:11.6]} 49. Qxg4 {[%clk 0:00:06.9]} 49... Qe1+ {[%clk 0:00:10.5]} 50. Kh2
{[%clk 0:00:05.7]} 50... Qf2+ {[%clk 0:00:10.5]} 51. Qg2 {[%clk 0:00:05.9]}
51... Qf4+ {[%clk 0:00:11]} 52. Qg3 {[%clk 0:00:06.3]} 52... Qd2+ {[%clk
0:00:10.8]} 53. Qg2 {[%clk 0:00:03.8]} 53... Qf4+ {[%clk 0:00:10.8]} 54. Rg3
{[%clk 0:00:04.2]} 54... Qh4+ {[%clk 0:00:10.8]} 55. Nh3 {[%clk 0:00:04.8]}
55... Qxf6 {[%clk 0:00:09.9]} 56. Rf3 {[%clk 0:00:04.9]} 56... Qh4 {[%clk
0:00:10]} 57. Qg3 {[%clk 0:00:05.2]} 57... Qh6 {[%clk 0:00:10.3]} 58. Qg5 {[%clk
0:00:05]} 58... Qh7 {[%clk 0:00:10.8]} 59. Qxe5 {[%clk 0:00:04.9]} 59... Qh4
{[%clk 0:00:10.5]} 60. Qg3 {[%clk 0:00:04.7]} 60... Qxe4 {[%clk 0:00:10.4]} 61.
Rf2 {[%clk 0:00:05.2]} 61... Nd7 {[%clk 0:00:08.8]} 62. Qf4 {[%clk 0:00:05.4]}
62... Qe7 {[%clk 0:00:08]} 63. d6 {[%clk 0:00:05.3]} 63... Qe6 {[%clk
0:00:07.6]} 64. Ng5 {[%clk 0:00:05.5]} 1-0

[Event "Betsys MČR v online bleskovém šachu 2021"]
[Site "Chess.com"]
[Date "2021.04.17"]
[Round "12"]
[White "Sunnika"]
[Black "Michelangelo111"]
[Result "0-1"]
[WhiteElo "2280"]
[BlackElo "2132"]
[TimeControl "180+1"]
[EndTime "11:02:19 PDT"]
[Termination "Uživatel Michelangelo111 zvítězil na čas"]

1. e4 {[%clk 0:03:00.9]} 1... c5 {[%clk 0:02:59.1]} 2. Nf3 {[%clk 0:03:00.6]}
2... Nc6 {[%clk 0:02:59]} 3. d4 {[%clk 0:03:00.1]} 3... cxd4 {[%clk 0:02:59.9]}
4. Nxd4 {[%clk 0:03:00.4]} 4... g6 {[%clk 0:02:59.9]} 5. c4 {[%clk 0:03:00.4]}
5... Bg7 {[%clk 0:02:59.3]} 6. Be3 {[%clk 0:02:59.6]} 6... Nf6 {[%clk
0:02:58.2]} 7. Nc3 {[%clk 0:02:59.7]} 7... O-O {[%clk 0:02:57.4]} 8. Be2 {[%clk
0:02:59.6]} 8... d6 {[%clk 0:02:56.9]} 9. O-O {[%clk 0:03:00]} 9... Bd7 {[%clk
0:02:56.4]} 10. Qd2 {[%clk 0:03:00]} 10... Nxd4 {[%clk 0:02:55.7]} 11. Bxd4
{[%clk 0:03:00.9]} 11... Bc6 {[%clk 0:02:56.5]} 12. Bd3 {[%clk 0:03:01]} 12...
Nd7 {[%clk 0:02:53.2]} 13. Bxg7 {[%clk 0:03:00.6]} 13... Kxg7 {[%clk 0:02:54.1]}
14. b4 {[%clk 0:03:01.2]} 14... b6 {[%clk 0:02:52.1]} 15. f4 {[%clk 0:02:46.8]}
15... Rc8 {[%clk 0:02:49.1]} 16. Rae1 {[%clk 0:02:39]} 16... Bb7 {[%clk
0:02:36.2]} 17. e5 {[%clk 0:02:29.9]} 17... Nb8 {[%clk 0:02:27.1]} 18. e6 {[%clk
0:02:21.6]} 18... fxe6 {[%clk 0:02:18.5]} 19. Rxe6 {[%clk 0:02:20.8]} 19... Qd7
{[%clk 0:02:12.7]} 20. Rfe1 {[%clk 0:02:19.5]} 20... Rce8 {[%clk 0:02:09.5]} 21.
Nd5 {[%clk 0:02:13]} 21... Bxd5 {[%clk 0:02:02]} 22. cxd5 {[%clk 0:02:13.9]}
22... Rf7 {[%clk 0:01:55]} 23. h4 {[%clk 0:01:47.1]} 23... Rf6 {[%clk
0:01:20.4]} 24. h5 {[%clk 0:01:43.4]} 24... a6 {[%clk 0:00:56.6]} 25. Qf2 {[%clk
0:01:23.3]} 25... b5 {[%clk 0:00:39.6]} 26. Qg3 {[%clk 0:00:48.3]} 26... Qa7+
{[%clk 0:00:30.1]} 27. Kh2 {[%clk 0:00:48.4]} 27... Qd4 {[%clk 0:00:11.3]} 28.
Rxe7+ {[%clk 0:00:46.7]} 28... Rxe7 {[%clk 0:00:12.2]} 29. Rxe7+ {[%clk
0:00:46.3]} 29... Kf8 {[%clk 0:00:05.8]} 30. Re4 {[%clk 0:00:14]} 30... Qxd5
{[%clk 0:00:04.5]} 31. hxg6 {[%clk 0:00:13.1]} 31... Rxg6 {[%clk 0:00:03.9]} 32.
Qh3 {[%clk 0:00:10.7]} 32... Nc6 {[%clk 0:00:02.8]} 33. Qc8+ {[%clk 0:00:10.2]}
33... Kg7 {[%clk 0:00:02.6]} 34. Qd7+ {[%clk 0:00:10]} 34... Kh6 {[%clk
0:00:02.7]} 35. Qh3+ {[%clk 0:00:08.7]} 35... Qh5 {[%clk 0:00:02.7]} 36. Qxh5+
{[%clk 0:00:08.5]} 36... Kxh5 {[%clk 0:00:03.6]} 37. g3 {[%clk 0:00:06.8]} 37...
Rf6 {[%clk 0:00:03.6]} 38. Kg2 {[%clk 0:00:06.8]} 38... Kg6 {[%clk 0:00:03.2]}
39. Rc4+ {[%clk 0:00:06.1]} 39... Kg7 {[%clk 0:00:02.3]} 40. Rxc6 {[%clk
0:00:07]} 40... Re6 {[%clk 0:00:02.4]} 41. f5 {[%clk 0:00:06.2]} 41... Re3
{[%clk 0:00:02]} 42. Rxd6 {[%clk 0:00:06.2]} 42... Re5 {[%clk 0:00:02.2]} 43. g4
{[%clk 0:00:06.2]} 43... Re3 {[%clk 0:00:01.8]} 44. Kf2 {[%clk 0:00:06.1]} 44...
Rh3 {[%clk 0:00:01.9]} 45. g5 {[%clk 0:00:05.7]} 45... Rh2+ {[%clk 0:00:01.8]}
46. Kg3 {[%clk 0:00:05.7]} 46... Rxa2 {[%clk 0:00:02.7]} 47. Rd7+ {[%clk
0:00:06]} 47... Kf8 {[%clk 0:00:02.9]} 48. f6 {[%clk 0:00:05.2]} 48... Ra3
{[%clk 0:00:02.8]} 49. Kf4 {[%clk 0:00:04.4]} 49... Ra1 {[%clk 0:00:02.8]} 50.
Bxh7 {[%clk 0:00:04]} 50... Rf1+ {[%clk 0:00:02.7]} 51. Ke5 {[%clk 0:00:03.9]}
51... a5 {[%clk 0:00:02.8]} 52. bxa5 {[%clk 0:00:03]} 52... Re1+ {[%clk
0:00:02.4]} 53. Be4 {[%clk 0:00:02.6]} 53... Rf1 {[%clk 0:00:02]} 54. g6 {[%clk
0:00:02]} 54... Ke8 {[%clk 0:00:01.9]} 55. Re7+ {[%clk 0:00:01.2]} 55... Kd8
{[%clk 0:00:01.9]} 56. a6 {[%clk 0:00:01.2]} 56... Ra1 {[%clk 0:00:01.8]} 0-1

[Event "Betsys MČR v online bleskovém šachu 2021"]
[Site "Chess.com"]
[Date "2021.04.17"]
[Round "12"]
[White "MatyldaCZ"]
[Black "l_pavlasek"]
[Result "0-1"]
[WhiteElo "1425"]
[BlackElo "1655"]
[TimeControl "180+1"]
[EndTime "11:02:20 PDT"]
[Termination "Uživatel l_pavlasek zvítězil na čas"]

1. e4 {[%clk 0:03:00.9]} 1... c5 {[%clk 0:02:58.2]} 2. Nf3 {[%clk 0:03:01.1]}
2... Nc6 {[%clk 0:02:57.5]} 3. d4 {[%clk 0:03:00.5]} 3... cxd4 {[%clk
0:02:57.1]} 4. Nxd4 {[%clk 0:03:00.9]} 4... d6 {[%clk 0:02:56.1]} 5. Bb5 {[%clk
0:03:00.7]} 5... Bd7 {[%clk 0:02:55.4]} 6. Nc3 {[%clk 0:02:59.3]} 6... a6 {[%clk
0:02:55.5]} 7. Bxc6 {[%clk 0:02:58.7]} 7... Bxc6 {[%clk 0:02:55.3]} 8. Nxc6
{[%clk 0:02:58.6]} 8... bxc6 {[%clk 0:02:55.1]} 9. Bg5 {[%clk 0:02:56.9]} 9...
g6 {[%clk 0:02:51]} 10. O-O {[%clk 0:02:55.5]} 10... Bg7 {[%clk 0:02:50.9]} 11.
Qd2 {[%clk 0:02:53.5]} 11... Nf6 {[%clk 0:02:50.4]} 12. Rfe1 {[%clk 0:02:52.2]}
12... O-O {[%clk 0:02:49.8]} 13. a3 {[%clk 0:02:49.9]} 13... Rb8 {[%clk
0:02:47.4]} 14. b4 {[%clk 0:02:48.2]} 14... Qc7 {[%clk 0:02:29.8]} 15. Rad1
{[%clk 0:02:45.8]} 15... c5 {[%clk 0:02:28.9]} 16. bxc5 {[%clk 0:02:45.1]} 16...
Qxc5 {[%clk 0:02:28.8]} 17. Bxf6 {[%clk 0:02:37.1]} 17... Bxf6 {[%clk
0:02:27.1]} 18. Nd5 {[%clk 0:02:37.5]} 18... Rbc8 {[%clk 0:02:10.1]} 19. Rc1
{[%clk 0:02:26.3]} 19... Bc3 {[%clk 0:02:09.3]} 20. Nxc3 {[%clk 0:02:12.6]}
20... Qxc3 {[%clk 0:02:09.1]} 21. Qf4 {[%clk 0:02:11.4]} 21... Qxa3 {[%clk
0:02:03.3]} 22. e5 {[%clk 0:02:12]} 22... dxe5 {[%clk 0:01:57.8]} 23. Qxe5
{[%clk 0:02:11.7]} 23... e6 {[%clk 0:01:45.7]} 24. c4 {[%clk 0:02:06.8]} 24...
Qc5 {[%clk 0:01:42.7]} 25. Qc3 {[%clk 0:01:55.5]} 25... a5 {[%clk 0:01:39.1]}
26. Rc2 {[%clk 0:01:53.3]} 26... a4 {[%clk 0:01:37.8]} 27. Rec1 {[%clk
0:01:53.2]} 27... Rfd8 {[%clk 0:01:34.7]} 28. h3 {[%clk 0:01:50.7]} 28... Rd7
{[%clk 0:01:33]} 29. Ra2 {[%clk 0:01:42.6]} 29... Ra7 {[%clk 0:01:21.9]} 30. Qc2
{[%clk 0:01:30.4]} 30... Rca8 {[%clk 0:01:17.8]} 31. Rb1 {[%clk 0:01:27.8]}
31... a3 {[%clk 0:01:12.7]} 32. Rb5 {[%clk 0:01:27.2]} 32... Qc6 {[%clk
0:01:07.9]} 33. Qb3 {[%clk 0:01:18.1]} 33... Rc8 {[%clk 0:00:54.1]} 34. c5
{[%clk 0:01:16]} 34... h6 {[%clk 0:00:39.5]} 35. Qc4 {[%clk 0:00:40.2]} 35...
Qd5 {[%clk 0:00:35.4]} 36. Qc2 {[%clk 0:00:32.8]} 36... Rac7 {[%clk 0:00:30.2]}
37. Rxa3 {[%clk 0:00:29]} 37... Rxc5 {[%clk 0:00:29]} 38. Rxc5 {[%clk
0:00:28.7]} 38... Qxc5 {[%clk 0:00:28.3]} 39. Qd3 {[%clk 0:00:22.3]} 39... Qe5
{[%clk 0:00:17.4]} 40. Ra7 {[%clk 0:00:17.1]} 40... Rc1+ {[%clk 0:00:15.9]} 41.
Qf1 {[%clk 0:00:14.9]} 41... Rxf1+ {[%clk 0:00:15.5]} 42. Kxf1 {[%clk
0:00:15.2]} 42... Qb5+ {[%clk 0:00:14.9]} 43. Kg1 {[%clk 0:00:11.3]} 43... Qb1+
{[%clk 0:00:14.4]} 44. Kh2 {[%clk 0:00:10.3]} 44... Qb8+ {[%clk 0:00:13.5]} 45.
g3 {[%clk 0:00:06.6]} 45... Qxa7 {[%clk 0:00:13.2]} 46. Kg2 {[%clk 0:00:07.2]}
46... e5 {[%clk 0:00:13]} 47. h4 {[%clk 0:00:06.9]} 47... Qb6 {[%clk 0:00:13.3]}
48. Kh3 {[%clk 0:00:07.1]} 48... Qc5 {[%clk 0:00:13.6]} 49. Kg2 {[%clk
0:00:07.9]} 49... Qd4 {[%clk 0:00:13.6]} 50. Kf3 {[%clk 0:00:07.6]} 50... e4+
{[%clk 0:00:13.3]} 51. Kg2 {[%clk 0:00:07.9]} 51... e3 {[%clk 0:00:13.5]} 52. f3
{[%clk 0:00:08.4]} 52... Qd2+ {[%clk 0:00:13.1]} 53. Kh3 {[%clk 0:00:08.2]}
53... e2 {[%clk 0:00:13.1]} 54. Kg4 {[%clk 0:00:08.7]} 54... f5+ {[%clk
0:00:12.9]} 55. Kh3 {[%clk 0:00:05.8]} 55... e1=Q {[%clk 0:00:12.5]} 56. g4
{[%clk 0:00:06]} 56... Qf1+ {[%clk 0:00:11.9]} 57. Kg3 {[%clk 0:00:05.8]} 57...
Qdg2+ {[%clk 0:00:11.4]} 58. Kf4 {[%clk 0:00:05.6]} 58... Qc4+ {[%clk
0:00:11.1]} 59. Ke5 {[%clk 0:00:05.3]} 59... Qge2+ {[%clk 0:00:10.4]} 60. Kf6
{[%clk 0:00:05.6]} 60... Qd4+ {[%clk 0:00:09.9]} 61. Kxg6 {[%clk 0:00:05.7]}
61... Qe6+ {[%clk 0:00:08.4]} 62. Kh5 {[%clk 0:00:02.8]} 62... fxg4 {[%clk
0:00:04.5]} 0-1